fUSD/lending_fUSD_20240429
["ID","MTS","AMOUNT","RATE_DAILY","PERIOD"]
[324882679,1714393860598,-235.916696,0.00012,2]
[324882680,1714393860608,-151.0,0.00012,2]
[324882681,1714393860617,-334.649372,0.00012,2]
[324882682,1714393860626,-334.649372,0.00012,2]
[324882683,1714393860636,-151.0,0.00012,2]
[324882684,1714393860645,-151.0,0.00012,2]
[324882685,1714393860655,-182.007671,0.00012,2]
[324882686,1714393860663,-2000.0,0.00012,2]
[324882687,1714393860672,-492.69346,0.00012,2]
[324882688,1714393860682,-200.0,0.00012,2]
[324882689,1714393860691,-492.69346,0.00012,2]
[324882690,1714393860700,-3000.0,0.00012,2]
[324882691,1714393860709,-1136.116103,0.00012,2]
[324882692,1714393860718,-1136.116103,0.00012,2]
[324882693,1714393860727,-290.033981,0.00012,2]
[324882694,1714393860737,-349.416885,0.00012,2]
[324882695,1714393860746,-290.033981,0.00012,2]
[324882696,1714393860755,-349.416885,0.00012,2]
[324882697,1714393860765,-925.552391,0.00012,2]
[324882698,1714393860774,-151.0,0.00012,2]
[324882699,1714393860783,-925.552391,0.00012,2]
[324882700,1714393860794,-151.0,0.00012,2]
[324882701,1714393860803,-151.0,0.00012,2]
[324882702,1714393860812,-151.0,0.00012,2]
[324882703,1714393860823,-2000.0,0.00012,2]
[324882704,1714393860832,-200.0,0.00012,2]
[324882705,1714393860841,-500.0,0.00012074,2]
[324882706,1714393860850,-500.0,0.00012075,2]
[324882707,1714393860859,-500.0,0.00012075,2]
[324882708,1714393860868,-500.0,0.00012075,2]
[324882709,1714393860877,-500.0,0.00012075,2]
[324882710,1714393860886,-500.0,0.00012075,2]
[324882711,1714393860895,-500.0,0.00012075,2]
[324882712,1714393860904,-500.0,0.00012075,2]
[324882713,1714393860914,-500.0,0.00012075,2]
[324882714,1714393860923,-500.0,0.00012075,2]
[324882715,1714393860932,-2182.08,0.00012075,2]
[324882716,1714393860941,-637.77192391,0.00012075,2]
[324882717,1714393860950,-500.0,0.00012075,2]
[324882718,1714393860960,-500.0,0.00012075,2]
[324882719,1714393860969,-6502.33,0.00012075,2]
[324882720,1714393860978,-500.0,0.00012075,2]
[324882721,1714393860988,-500.0,0.00012075,2]
[324882722,1714393860997,-786.63,0.00012075,2]
[324882723,1714393861006,-544.44,0.00012075,2]
[324882724,1714393861015,-500.0,0.00012075,2]
[324882725,1714393861024,-500.0,0.00012075,2]
[324882726,1714393861034,-500.0,0.00012075,2]
[324882727,1714393861045,-500.0,0.00012075,2]
[324882728,1714393861057,-579.41,0.00012075,2]
[324882729,1714393861066,-2536.3,0.00012075,2]
[324882730,1714393861074,-500.0,0.00012075,2]
[324882731,1714393861084,-500.0,0.00012075,2]
[324882732,1714393861094,-500.0,0.00012075,2]
[324882733,1714393861104,-1034.81,0.00012075,2]
[324882734,1714393861113,-500.0,0.00012075,2]
[324882735,1714393861124,-500.0,0.00012075,2]
[324882736,1714393861135,-1527.15,0.00012075,2]
[324882737,1714393861144,-1054.44,0.00012075,2]
[324882738,1714393861153,-500.0,0.00012075,2]
[324882739,1714393861162,-929.79,0.00012075,2]
[324882740,1714393861172,-500.0,0.00012075,2]
[324882741,1714393861181,-1624.96,0.00012075,2]
[324882742,1714393861190,-565.9,0.00012075,2]
[324882743,1714393861200,-746.75,0.00012075,2]
[324882744,1714393861209,-943.09,0.00012075,2]
[324882745,1714393861219,-500.0,0.00012075,2]
[324882746,1714393861228,-780.31,0.00012075,2]
[324882747,1714393861237,-1007.67,0.00012075,2]
[324882748,1714393861246,-500.0,0.00012075,2]
[324882749,1714393861255,-500.0,0.00012075,2]
[324882750,1714393861264,-500.0,0.00012075,2]
[324882751,1714393861273,-500.0,0.00012075,2]
[324882752,1714393861283,-500.0,0.00012075,2]
[324882753,1714393861293,-500.0,0.00012075,2]
[324882754,1714393861302,-500.0,0.00012075,2]
[324882755,1714393861311,-735.52,0.00012075,2]
[324882756,1714393861320,-507.74,0.00012075,2]
[324882757,1714393861329,-1371.61,0.00012075,2]
[324882758,1714393861338,-500.0,0.00012075,2]
[324882759,1714393861348,-500.0,0.00012075,2]
[324882760,1714393861357,-500.0,0.00012075,2]
[324882761,1714393861366,-917.74,0.00012075,2]
[324882762,1714393861375,-537.23,0.00012075,2]
[324882763,1714393861384,-571.08,0.00012075,2]
[324882764,1714393861394,-5524.5,0.00012075,2]
[324882765,1714393861403,-2383.4,0.00012075,2]
[324882766,1714393861412,-933.07,0.00012075,2]
[324882767,1714393861421,-549.46,0.00012075,2]
[324882768,1714393861430,-500.0,0.00012075,2]
[324882769,1714393861440,-500.0,0.00012075,2]
[324882770,1714393861449,-1165.02,0.00012075,2]
[324882771,1714393861458,-500.0,0.00012075,2]
[324882772,1714393861467,-500.0,0.00012075,2]
[324882773,1714393861476,-180.66599982,0.00012075,2]
[324882774,1714393862123,-500.0,0.00010979,2]
[324882775,1714393862134,-502.43070203,0.00010999,2]
[324882776,1714393862143,-259.209583,0.00011,2]
[324882777,1714393862153,-259.209583,0.00011273,2]
[324882778,1714393862162,-259.209583,0.00011273,2]
[324882779,1714393862171,-259.209583,0.00011547,2]
[324882780,1714393862180,-259.209583,0.00011821,2]
[324882781,1714393862189,-259.209583,0.00012,2]
[324882782,1714393862198,-319.33400018,0.00012075,2]
[324882783,1714393862208,-500.0,0.00012075,2]
[324882784,1714393862217,-5767.47,0.00012075,2]
[324882785,1714393862226,-500.0,0.00012075,2]
[324882786,1714393862236,-302.46,0.00012075,2]
[324882787,1714393862246,-1209.79,0.00012075,2]
[324882788,1714393862255,-500.0,0.00012075,2]
[324882789,1714393862265,-500.0,0.00012075,2]
[324882790,1714393862274,-500.0,0.00012075,2]
[324882791,1714393862283,-259.209583,0.00012075,2]
[324882792,1714393862294,-387.2079622,0.00012082,2]
[324882793,1714393862302,-151.0,0.00012083,2]
[324882794,1714393862311,-151.0,0.00012083,2]
[324882795,1714393862321,-10000.0,0.00012083,2]
[324882796,1714393862330,-500.0,0.00012095,2]
[324882797,1714393862340,-997.25,0.00012095,2]
[324882798,1714393862349,-500.0,0.00012095,2]
[324882799,1714393862358,-500.0,0.00012095,2]
[324882800,1714393862367,-500.0,0.00012095,2]
[324882801,1714393862376,-500.0,0.00012095,2]
[324882802,1714393862386,-500.0,0.00012095,2]
[324882803,1714393862395,-928.69,0.00012095,2]
[324882804,1714393862404,-500.0,0.00012095,2]
[324882805,1714393862413,-500.0,0.00012095,2]
[324882806,1714393862422,-500.0,0.00012095,2]
[324882807,1714393862432,-500.0,0.00012095,2]
[324882808,1714393862441,-500.0,0.00012095,2]
[324882809,1714393862451,-616.26,0.00012095,2]
[324882810,1714393862460,-151.0,0.00012095,2]
[324882811,1714393862469,-334.649372,0.00012095,2]
[324882812,1714393862478,-334.649372,0.00012095,2]
[324882813,1714393862487,-151.0,0.00012095,2]
[324882814,1714393862496,-320.19,0.00012095,2]
[324882815,1714393862505,-151.0,0.00012095,2]
[324882816,1714393862515,-459.76,0.00012095,2]
[324882817,1714393862524,-500.0,0.00012095,2]
[324882818,1714393862533,-500.0,0.00012095,2]
[324882819,1714393862543,-500.0,0.00012095,2]
[324882820,1714393862552,-500.0,0.00012095,2]
[324882821,1714393862562,-500.0,0.00012095,2]
[324882822,1714393862571,-500.0,0.00012095,2]
[324882823,1714393862580,-498.84,0.00012095,2]
[324882824,1714393862589,-492.69346,0.00012095,2]
[324882825,1714393862598,-500.0,0.00012095,2]
[324882826,1714393862608,-492.69346,0.00012095,2]
[324882827,1714393862617,-500.0,0.00012095,2]
[324882828,1714393862626,-500.0,0.00012095,2]
[324882829,1714393862635,-1136.116103,0.00012095,2]
[324882830,1714393862644,-500.0,0.00012095,2]
[324882831,1714393862654,-1136.116103,0.00012095,2]
[324882832,1714393862663,-500.0,0.00012095,2]
[324882833,1714393862672,-77.26690834,0.00012095,2]
[324882834,1714393862964,-500.0,0.00010978,2]
[324882835,1714393862974,-500.0,0.00010979,2]
[324882836,1714393862983,-506.53301786,0.00010979,2]
[324882837,1714393862992,-77.96698214,0.00010999,2]
[324882838,1714393863005,-422.03301786,0.00010999,2]
[324882839,1714393863014,-259.209583,0.00010999,2]
[324882840,1714393863023,-500.0,0.00010999,2]
[324882841,1714393863033,-259.209583,0.00011,2]
[324882842,1714393863042,-259.209583,0.00011273,2]
[324882843,1714393863056,-259.209583,0.00011273,2]
[324882844,1714393863065,-422.73309166,0.00012095,2]
[324882845,1714393863075,-500.0,0.00012095,2]
[324882846,1714393863084,-290.033981,0.00012095,2]
[324882847,1714393863094,-349.416885,0.00012095,2]
[324882848,1714393863104,-500.0,0.00012095,2]
[324882849,1714393863113,-290.033981,0.00012095,2]
[324882850,1714393863122,-349.416885,0.00012095,2]
[324882851,1714393863133,-525.96,0.00012095,2]
[324882852,1714393863142,-6225.63,0.00012095,2]
[324882853,1714393863151,-925.552391,0.00012095,2]
[324882854,1714393863160,-1575.66,0.00012095,2]
[324882855,1714393863170,-151.0,0.00012095,2]
[324882856,1714393863179,-925.552391,0.00012095,2]
[324882857,1714393863188,-1112.41,0.00012095,2]
[324882858,1714393863198,-500.0,0.00012095,2]
[324882859,1714393863207,-500.0,0.00012095,2]
[324882860,1714393863216,-500.0,0.00012095,2]
[324882861,1714393863226,-325.87,0.00012095,2]
[324882862,1714393863235,-200.0,0.0001212,2]
[324882863,1714393863244,-2000.0,0.0001212,2]
[324882864,1714393863253,-200.0,0.0001212,2]
[324882865,1714393863262,-2000.0,0.0001212,2]
[324882866,1714393863271,-200.0,0.0001212,2]
[324882867,1714393863281,-2000.0,0.0001212,2]
[324882868,1714393863290,-200.0,0.0001212,2]
[324882869,1714393863301,-387.2079622,0.00012173,2]
[324882870,1714393863310,-216.67,0.00012232,2]
[324882871,1714393863319,-200.0,0.00012241,2]
[324882872,1714393863329,-2000.0,0.00012241,2]
[324882873,1714393863338,-200.0,0.00012241,2]
[324882874,1714393863347,-2000.0,0.00012241,2]
[324882875,1714393863356,-200.0,0.00012241,2]
[324882876,1714393863366,-2000.0,0.00012241,2]
[324882877,1714393863375,-200.0,0.00012241,2]
[324882878,1714393863384,-387.2079622,0.00012264,2]
[324882879,1714393863393,-151.547035,0.00012273,2]
[324882880,1714393863402,-151.0,0.00012273,2]
[324882881,1714393863412,-265.168029,0.00012273,2]
[324882882,1714393863421,-151.0,0.00012273,2]
[324882883,1714393863430,-196.057954,0.00012273,2]
[324882884,1714393863439,-196.057954,0.00012273,2]
[324882885,1714393863449,-500.0,0.00012348,2]
[324882886,1714393863459,-500.0,0.00012349,2]
[324882887,1714393863468,-500.0,0.00012349,2]
[324882888,1714393863477,-500.0,0.00012349,2]
[324882889,1714393863486,-621.36713171,0.00012349,2]
[324882890,1714393863496,-500.0,0.00012349,2]
[324882891,1714393863506,-500.0,0.00012349,2]
[324882892,1714393863515,-500.0,0.00012349,2]
[324882893,1714393863524,-6502.33,0.00012349,2]
[324882894,1714393863534,-195.41052609,0.00012349,2]
[324882895,1714393863545,-500.0,0.00012349,2]
[324882896,1714393863555,-786.63,0.00012349,2]
[324882897,1714393863564,-544.44,0.00012349,2]
[324882898,1714393863574,-500.0,0.00012349,2]
[324882899,1714393863584,-500.0,0.00012349,2]
[324882900,1714393863593,-196.59961914,0.00012349,2]
[324882901,1714393863603,-500.0,0.00012349,2]
[324882902,1714393863612,-579.41,0.00012349,2]
[324882903,1714393863622,-2536.3,0.00012349,2]
[324882904,1714393863631,-500.0,0.00012349,2]
[324882905,1714393863641,-500.0,0.00012349,2]
[324882906,1714393863650,-1034.81,0.00012349,2]
[324882907,1714393863659,-500.0,0.00012349,2]
[324882908,1714393863668,-500.0,0.00012349,2]
[324882909,1714393863678,-1527.15,0.00012349,2]
[324882910,1714393863687,-1054.44,0.00012349,2]
[324882911,1714393863696,-500.0,0.00012349,2]
[324882912,1714393863705,-929.79,0.00012349,2]
[324882913,1714393863715,-500.0,0.00012349,2]
[324882914,1714393863724,-1624.96,0.00012349,2]
[324882915,1714393863733,-565.9,0.00012349,2]
[324882916,1714393863742,-746.75,0.00012349,2]
[324882917,1714393863751,-943.09,0.00012349,2]
[324882918,1714393863760,-628.39386632,0.00012349,2]
[324882919,1714393863770,-780.31,0.00012349,2]
[324882920,1714393863779,-1007.67,0.00012349,2]
[324882921,1714393863789,-500.0,0.00012349,2]
[324882922,1714393863800,-500.0,0.00012349,2]
[324882923,1714393863810,-500.0,0.00012349,2]
[324882924,1714393863819,-500.0,0.00012349,2]
[324882925,1714393863828,-500.0,0.00012349,2]
[324882926,1714393863837,-577.52,0.00012349,2]
[324882927,1714393863847,-500.0,0.00012349,2]
[324882928,1714393863856,-735.52,0.00012349,2]
[324882929,1714393863865,-507.74,0.00012349,2]
[324882930,1714393863874,-1371.61,0.00012349,2]
[324882931,1714393863883,-500.0,0.00012349,2]
[324882932,1714393863892,-917.74,0.00012349,2]
[324882933,1714393863902,-537.23,0.00012349,2]
[324882934,1714393863911,-571.08,0.00012349,2]
[324882935,1714393863920,-5524.5,0.00012349,2]
[324882936,1714393863930,-2383.4,0.00012349,2]
[324882937,1714393863939,-933.07,0.00012349,2]
[324882938,1714393863949,-586.41,0.00012349,2]
[324882939,1714393863958,-1165.02,0.00012349,2]
[324882940,1714393863968,-500.0,0.00012349,2]
[324882941,1714393863977,-500.0,0.00012349,2]
[324882942,1714393863987,-5767.47,0.00012349,2]
[324882943,1714393863996,-500.0,0.00012349,2]
[324882944,1714393864006,-1209.79,0.00012349,2]
[324882945,1714393864016,-500.0,0.00012349,2]
[324882946,1714393864025,-500.0,0.00012349,2]
[324882947,1714393864035,-500.0,0.00012349,2]
[324882948,1714393864046,-387.2079622,0.00012355,2]
[324882949,1714393864059,-200.0,0.00012364,2]
[324882950,1714393864068,-200.0,0.00012364,2]
[324882951,1714393864077,-2000.0,0.00012364,2]
[324882952,1714393864086,-200.0,0.00012364,2]
[324882953,1714393864096,-2000.0,0.00012364,2]
[324882954,1714393864105,-200.0,0.00012364,2]
[324882955,1714393864114,-500.0,0.00012369,2]
[324882956,1714393864123,-997.25,0.00012369,2]
[324882957,1714393864135,-500.0,0.00012369,2]
[324882958,1714393864144,-500.0,0.00012369,2]
[324882959,1714393864153,-329.71,0.00012369,2]
[324882960,1714393864163,-356.42076246,0.00012369,2]
[324882961,1714393864175,-572.26923754,0.00012369,2]
[324882962,1714393864185,-500.0,0.00012369,2]
[324882963,1714393864194,-564.36421316,0.00012369,2]
[324882964,1714393864204,-500.0,0.00012369,2]
[324882965,1714393864213,-500.0,0.00012369,2]
[324882966,1714393864222,-500.0,0.00012369,2]
[324882967,1714393864231,-500.0,0.00012369,2]
[324882968,1714393864240,-500.0,0.00012369,2]
[324882969,1714393864250,-500.0,0.00012369,2]
[324882970,1714393864259,-500.0,0.00012369,2]
[324882971,1714393864268,-500.0,0.00012369,2]
[324882972,1714393864277,-525.96,0.00012369,2]
[324882973,1714393864287,-6225.63,0.00012369,2]
[324882974,1714393864297,-1575.66,0.00012369,2]
[324882975,1714393864307,-1112.41,0.00012369,2]
[324882976,1714393864316,-500.0,0.00012369,2]
[324882977,1714393864326,-500.0,0.00012369,2]
[324882978,1714393864335,-387.2079622,0.00012445,2]
[324882979,1714393864344,-200.0,0.00012487,2]
[324882980,1714393864354,-200.0,0.00012487,2]
[324882981,1714393864363,-2000.0,0.00012487,2]
[324882982,1714393864372,-200.0,0.00012487,2]
[324882983,1714393864382,-200.0,0.00012487,2]
[324882984,1714393864391,-857.0,0.00012499,2]
[324882985,1714393864400,-387.2079622,0.00012536,2]
[324882986,1714393864410,-1745.76,0.00012572,2]
[324882987,1714393864420,-1500.0,0.00012589,2]
[324882988,1714393864430,-151.0,0.000126,2]
[324882989,1714393864440,-1500.0,0.00012606,2]
[324882990,1714393864449,-500.0,0.00012622,2]
[324882991,1714393864459,-500.0,0.00012623,2]
[324882992,1714393864467,-500.0,0.00012623,2]
[324882993,1714393864476,-500.0,0.00012623,2]
[324882994,1714393864486,-492.69346,0.00012623,2]
[324882995,1714393864495,-492.69346,0.00012623,2]
[324882996,1714393864504,-1136.116103,0.00012623,2]
[324882997,1714393864513,-1136.116103,0.00012623,2]
[324882998,1714393864523,-500.0,0.00012623,2]
[324882999,1714393864532,-290.033981,0.00012623,2]
[324883000,1714393864542,-349.416885,0.00012623,2]
[324883001,1714393864558,-290.033981,0.00012623,2]
[324883002,1714393864568,-349.416885,0.00012623,2]
[324883003,1714393864592,-500.0,0.00012623,2]
[324883004,1714393864602,-6502.33,0.00012623,2]
[324883005,1714393864611,-500.0,0.00012623,2]
[324883006,1714393864620,-786.63,0.00012623,2]
[324883007,1714393864763,-544.44,0.00012623,2]
[324883008,1714393864777,-500.0,0.00012623,2]
[324883009,1714393864786,-925.552391,0.00012623,2]
[324883010,1714393864798,-151.0,0.00012623,2]
[324883011,1714393864808,-925.552391,0.00012623,2]
[324883012,1714393864818,-500.0,0.00012623,2]
[324883013,1714393864828,-500.0,0.00012623,2]
[324883014,1714393864838,-579.41,0.00012623,2]
[324883015,1714393864847,-2536.3,0.00012623,2]
[324883016,1714393864857,-500.0,0.00012623,2]
[324883017,1714393864866,-500.0,0.00012623,2]
[324883018,1714393864877,-1034.81,0.00012623,2]
[324883019,1714393864886,-500.0,0.00012623,2]
[324883020,1714393864895,-500.0,0.00012623,2]
[324883021,1714393864904,-1527.15,0.00012623,2]
[324883022,1714393864914,-1054.44,0.00012623,2]
[324883023,1714393864924,-500.0,0.00012623,2]
[324883024,1714393864933,-929.79,0.00012623,2]
[324883025,1714393864943,-151.0,0.00012623,2]
[324883026,1714393864953,-500.0,0.00012623,2]
[324883027,1714393864962,-1624.96,0.00012623,2]
[324883028,1714393864971,-565.9,0.00012623,2]
[324883029,1714393864981,-746.75,0.00012623,2]
[324883030,1714393864990,-943.09,0.00012623,2]
[324883031,1714393865000,-780.31,0.00012623,2]
[324883032,1714393865010,-1007.67,0.00012623,2]
[324883033,1714393865020,-500.0,0.00012623,2]
[324883034,1714393865029,-500.0,0.00012623,2]
[324883035,1714393865038,-500.0,0.00012623,2]
[324883036,1714393865050,-500.0,0.00012623,2]
[324883037,1714393865060,-500.0,0.00012623,2]
[324883038,1714393865070,-500.0,0.00012623,2]
[324883039,1714393865079,-735.52,0.00012623,2]
[324883040,1714393865089,-507.74,0.00012623,2]
[324883041,1714393865099,-1371.61,0.00012623,2]
[324883042,1714393865108,-500.0,0.00012623,2]
[324883043,1714393865118,-917.74,0.00012623,2]
[324883044,1714393865130,-537.23,0.00012623,2]
[324883045,1714393865140,-571.08,0.00012623,2]
[324883046,1714393865150,-5524.5,0.00012623,2]
[324883047,1714393865159,-2383.4,0.00012623,2]
[324883048,1714393865168,-209.825876,0.00012623,2]
[324883049,1714393865178,-933.07,0.00012623,2]
[324883050,1714393865188,-1165.02,0.00012623,2]
[324883051,1714393865197,-500.0,0.00012623,2]
[324883052,1714393865207,-500.0,0.00012623,2]
[324883053,1714393865216,-5767.47,0.00012623,2]
[324883054,1714393865226,-500.0,0.00012623,2]
[324883055,1714393865235,-500.0,0.00012623,2]
[324883056,1714393865244,-1209.79,0.00012623,2]
[324883057,1714393865254,-500.0,0.00012623,2]
[324883058,1714393865263,-500.0,0.00012623,2]
[324883059,1714393865272,-259.209583,0.00012623,2]
[324883060,1714393865282,-387.2079622,0.00012627,2]
[324883061,1714393865291,-500.0,0.00012643,2]
[324883062,1714393865302,-997.25,0.00012643,2]
[324883063,1714393865311,-500.0,0.00012643,2]
[324883064,1714393865320,-500.0,0.00012643,2]
[324883065,1714393865330,-928.69,0.00012643,2]
[324883066,1714393865339,-151.0,0.00012643,2]
[324883067,1714393865348,-111.08651509,0.00012643,2]
[324883074,1714394554376,277.77,8.498e-05,2]
[324883091,1714394987084,8158.4108869,0.0002,50]
[324883098,1714395029580,263.88,8.297e-05,2]
[324883107,1714395031617,-194.51329397,8.915e-05,2]
[324883108,1714395031627,-155.0,8.916e-05,2]
[324883109,1714395031637,-155.0,8.917e-05,2]
[324883110,1714395031646,-192.26102205,8.941e-05,2]
[324883111,1714395031659,-500.42973824,8.941e-05,2]
[324883112,1714395031668,-188.87267584,0.00010103,2]
[324883113,1714395031681,-811.12732416,0.00010103,2]
[324883114,1714395031690,-581.24,0.00010235,2]
[324883115,1714395031701,-176.03,0.00010241,2]
[324883116,1714395031711,-164.41,0.0001035,2]
[324883117,1714395031721,-324.17,0.00010394,2]
[324883118,1714395031730,-159.4,0.00010505,2]
[324883119,1714395031741,-164.41,0.0001053,2]
[324883120,1714395031754,-263.88,0.00010561,2]
[324883121,1714395031763,-164.41,0.0001071,2]
[324883122,1714395031773,-150.0,0.00010712,2]
[324883123,1714395031782,-1719.26016566,0.00010875,2]
[324883124,1714395031793,-164.41,0.0001089,2]
[324883125,1714395031804,-499.99,0.00010959,2]
[324883126,1714395031814,-150.0,0.00010959,2]
[324883127,1714395031824,-150.0,0.00010959,2]
[324883128,1714395031834,-632.36484998,0.00010978,2]
[324883129,1714395031844,-500.0,0.00010978,2]
[324883130,1714395031853,-500.0,0.00010978,2]
[324883131,1714395031862,-500.0,0.00010978,2]
[324883132,1714395031871,-500.0,0.00010978,2]
[324883133,1714395031881,-563.67652176,0.00010978,2]
[324883134,1714395031890,-500.0,0.00010978,2]
[324883135,1714395031899,-500.0,0.00010978,2]
[324883136,1714395031907,-468.68381555,0.00010978,2]
[324883137,1714395031917,-500.0,0.00010978,2]
[324883138,1714395031926,-500.0,0.00010978,2]
[324883139,1714395031935,-500.0,0.00010978,2]
[324883140,1714395031945,-279.13092413,0.00010978,2]
[324883141,1714395031954,-1081.73,0.00010978,2]
[324883142,1714395031963,-500.0,0.00010978,2]
[324883144,1714395031973,-500.0,0.00010978,2]
[324883146,1714395031982,-500.0,0.00010978,2]
[324883148,1714395031991,-500.0,0.00010978,2]
[324883150,1714395032004,-500.0,0.00010978,2]
[324883152,1714395032013,-500.0,0.00010978,2]
[324883154,1714395032023,-500.0,0.00010978,2]
[324883156,1714395032032,-500.0,0.00010978,2]
[324883158,1714395032041,-500.0,0.00010978,2]
[324883159,1714395032050,-500.0,0.00010978,2]
[324883162,1714395032059,-500.0,0.00010978,2]
[324883163,1714395032068,-500.0,0.00010978,2]
[324883165,1714395032078,-500.0,0.00010978,2]
[324883167,1714395032087,-500.0,0.00010978,2]
[324883170,1714395032096,-278.29,0.00010978,2]
[324883171,1714395032105,-504.31170756,0.00010978,2]
[324883173,1714395032116,-183.25432662,0.00010978,2]
[324883175,1714395032125,-500.0,0.00010978,2]
[324883177,1714395032135,-513.94,0.00010978,2]
[324883179,1714395032144,-500.0,0.00010978,2]
[324883181,1714395032153,-500.0,0.00010978,2]
[324883183,1714395032162,-500.0,0.00010978,2]
[324883185,1714395032171,-500.0,0.00010978,2]
[324883187,1714395032180,-500.0,0.00010978,2]
[324883189,1714395032189,-500.0,0.00010978,2]
[324883191,1714395032198,-500.0,0.00010978,2]
[324883193,1714395032208,-500.0,0.00010978,2]
[324883195,1714395032217,-500.0,0.00010978,2]
[324883198,1714395032227,-502.66313078,0.00010978,2]
[324883199,1714395032235,-501.68042887,0.00010978,2]
[324883201,1714395032244,-500.0,0.00010978,2]
[324883203,1714395032256,-500.0,0.00010978,2]
[324883205,1714395032265,-500.0,0.00010978,2]
[324883207,1714395032274,-500.0,0.00010978,2]
[324883210,1714395032283,-510.52204692,0.00010978,2]
[324883212,1714395032292,-610.84897656,0.00010978,2]
[324883214,1714395032301,-500.0,0.00010978,2]
[324883215,1714395032310,-855.15,0.00010978,2]
[324883217,1714395032320,-261.27084353,0.00010978,2]
[324883220,1714395032329,-512.28227857,0.00010978,2]
[324883221,1714395032338,-500.0,0.00010978,2]
[324883223,1714395032347,-501.6310825,0.00010978,2]
[324883225,1714395032357,-500.0,0.00010978,2]
[324883228,1714395032366,-500.0,0.00010978,2]
[324883230,1714395032375,-500.0,0.00010978,2]
[324883231,1714395032384,-500.0,0.00010978,2]
[324883234,1714395032393,-500.0,0.00010978,2]
[324883235,1714395032402,-500.0,0.00010978,2]
[324883236,1714395032412,-500.0,0.00010978,2]
[324883237,1714395032423,-558.26544498,0.00010978,2]
[324883238,1714395032432,-500.0,0.00010978,2]
[324883239,1714395032441,-500.0,0.00010978,2]
[324883240,1714395032451,-505.95694787,0.00010978,2]
[324883241,1714395032463,-518.54112473,0.00010978,2]
[324883242,1714395032472,-500.0,0.00010978,2]
[324883243,1714395032482,-503.65569498,0.00010978,2]
[324883244,1714395032491,-500.0,0.00010978,2]
[324883245,1714395032501,-500.0,0.00010978,2]
[324883246,1714395032510,-500.0,0.00010978,2]
[324883247,1714395032519,-200.0,0.00010978,2]
[324883248,1714395032528,-315.60430933,0.00010978,2]
[324883249,1714395032537,-508.84,0.00010978,2]
[324883250,1714395032547,-516.03482784,0.00010978,2]
[324883251,1714395032556,-500.0,0.00010978,2]
[324883252,1714395032565,-500.0,0.00010978,2]
[324883253,1714395032575,-510.07292339,0.00010978,2]
[324883254,1714395032584,-521.27085793,0.00010978,2]
[324883255,1714395032593,-500.0,0.00010978,2]
[324883256,1714395032602,-500.0,0.00010978,2]
[324883257,1714395032611,-500.0,0.00010978,2]
[324883258,1714395032620,-500.0,0.00010978,2]
[324883259,1714395032630,-500.0,0.00010978,2]
[324883260,1714395032640,-500.0,0.00010978,2]